bitfinex-derivatives/quotes_BTCF0:USTF0_20220102
["timestamp","ask_amount","ask_price","bid_price","bid_amount"]
[1641133980785,0.161,47112.0,47111.0,0.02122167]
[1641133981289,0.25147942,47112.0,47111.0,0.02122167]
[1641133981688,0.09047942,47112.0,47111.0,2.4700506]
[1641133981888,1.30967303,47117.0,47115.0,0.33401077]
[1641133982187,1.30967303,47117.0,47116.0,0.18]
[1641133982188,1.28367303,47117.0,47116.0,0.18]
[1641133982389,1.28367303,47117.0,47116.0,0.496949]
[1641133982589,1.28367303,47118.0,47116.0,0.496949]
[1641133982788,1.28367303,47118.0,47117.0,0.14033567]
[1641133983189,1.41759996,47121.0,47117.0,0.14033567]
[1641133983389,0.14033567,47124.0,47117.0,0.14033567]
[1641133983590,0.32033567,47124.0,47117.0,0.14033567]
[1641133984091,0.14033567,47124.0,47117.0,0.14033567]
[1641133984288,0.32633567,47124.0,47117.0,0.14033567]
[1641133984489,1.74393563,47124.0,47121.0,0.36184601]
[1641133985288,0.32633567,47124.0,47122.0,0.36184601]
[1641133985689,0.14033567,47124.0,47122.0,0.36184601]
[1641133986289,0.23633567,47124.0,47122.0,0.36184601]
[1641133987589,0.14033567,47124.0,47122.0,0.36184601]
[1641133987791,0.14033567,47124.0,47123.0,0.36184601]
[1641133988390,0.20533567,47124.0,47123.0,0.36184601]
[1641133989190,0.38533567,47124.0,47123.0,0.36184601]
[1641133989691,0.32033567,47124.0,47123.0,0.36184601]
[1641133990292,1.90793563,47124.0,47122.0,0.36184601]
[1641133990494,1.97263563,47124.0,47122.0,0.36184601]
[1641133991192,1.97263563,47124.0,47121.0,0.36184601]
[1641133991597,1.80263563,47124.0,47121.0,0.36184601]
[1641133991994,1.41759996,47123.0,47120.0,0.36184601]
[1641133992194,0.18,47121.0,47120.0,0.36184601]
[1641133992393,1.41759996,47123.0,47120.0,0.36184601]
[1641133992593,0.18,47121.0,47120.0,0.36184601]
[1641133994394,0.365,47121.0,47119.0,0.36184601]
[1641133995794,0.18,47121.0,47119.0,0.36184601]
[1641133995994,0.18,47121.0,47114.0,0.36184601]
[1641133996394,0.365,47121.0,47114.0,0.36184601]
[1641133996595,0.59443495,47116.0,47114.0,0.36184601]
[1641133998310,0.77343495,47116.0,47114.0,0.36184601]
[1641133999815,0.59443495,47116.0,47114.0,0.36184601]
[1641134000415,0.76943495,47116.0,47114.0,0.36184601]
[1641134002416,0.94443495,47116.0,47114.0,0.36184601]
[1641134003616,0.59443495,47116.0,47114.0,0.36184601]
[1641134004418,0.77243495,47116.0,47114.0,0.36184601]
[1641134005619,0.59443495,47115.0,47114.0,0.36184601]
[1641134006220,0.59443495,47115.0,47113.0,0.36184601]
[1641134006420,0.70443495,47115.0,47113.0,0.36184601]
[1641134007224,0.11,47115.0,47114.0,0.36184601]
[1641134007621,0.59443495,47116.0,47114.0,0.36184601]
[1641134008421,0.77343495,47116.0,47114.0,0.36184601]
[1641134009520,0.77343495,47116.0,47115.0,0.36184601]
[1641134009721,0.59443495,47117.0,47115.0,0.36184601]
[1641134010324,0.77243495,47117.0,47115.0,0.36184601]
[1641134010923,0.59443495,47116.0,47115.0,0.36184601]
[1641134012324,0.18,47116.0,47115.0,0.36184601]
[1641134013526,0.77443495,47116.0,47114.0,0.36184601]
[1641134013725,0.59443495,47116.0,47114.0,0.36184601]
[1641134014426,0.75243495,47116.0,47114.0,0.36184601]
[1641134014828,0.75243495,47116.0,47113.0,0.78307668]
[1641134015032,0.158,47116.0,47114.0,0.60307668]
[1641134015328,0.158,47116.0,47114.0,0.69473668]
[1641134015728,0.59443495,47118.0,47114.0,0.69473668]
[1641134015929,0.73477062,47119.0,47115.0,0.60307668]
[1641134016429,0.156,47118.0,47115.0,0.60307668]
[1641134016629,0.156,47118.0,47114.0,0.09166]
[1641134016830,0.24645969,47118.0,47114.0,0.09166]
[1641134017633,0.09045969,47118.0,47114.0,0.09166]
[1641134017832,0.59478752,47116.0,47114.0,0.09166]
[1641134018031,0.59478752,47116.0,47112.0,0.14033567]
[1641134018431,0.74178752,47116.0,47113.0,0.012059]
[1641134019733,0.59478752,47116.0,47114.0,0.42450092]
[1641134021537,0.59478752,47117.0,47114.0,0.42450092]
[1641134022842,0.17033675,47117.0,47115.0,1.294]
[1641134023040,0.17033675,47117.0,47116.0,1.14501179]
[1641134023439,0.17033675,47117.0,47116.0,1.28534746]
[1641134023640,0.17033675,47117.0,47116.0,1.29753043]
[1641134023844,0.17033675,47117.0,47116.0,1.3840198]
[1641134024140,0.09045777,47118.0,47116.0,1.3840198]
[1641134024340,0.09045777,47118.0,47116.0,1.5790198]
[1641134024541,1.30797087,47128.0,47116.0,1.5790198]
[1641134024742,1.30797087,47128.0,47118.0,1.294]
[1641134024942,1.30797087,47128.0,47118.0,1.114]
[1641134025245,1.30797087,47129.0,47125.0,0.36164493]
[1641134026043,0.09045777,47127.0,47125.0,0.36164493]
[1641134026342,0.09045777,47127.0,47125.0,0.54164493]
[1641134026944,1.30797087,47128.0,47125.0,0.54164493]
[1641134027745,1.30797087,47128.0,47125.0,0.36164493]
[1641134028045,1.39842864,47128.0,47125.0,0.36164493]
[1641134028246,0.09045777,47128.0,47125.0,0.36164493]
[1641134028449,0.27145777,47128.0,47125.0,0.54464493]
[1641134029144,0.181,47128.0,47125.0,0.54464493]
[1641134029846,0.09045777,47127.0,47125.0,0.36164493]
[1641134030445,0.25145777,47127.0,47125.0,0.52864493]
[1641134030646,0.161,47127.0,47125.0,0.167]
[1641134030847,0.161,47127.0,47125.0,0.176794]
[1641134031650,0.09045777,47126.0,47125.0,0.009794]
[1641134032450,1.30797087,47129.0,47125.0,0.195794]
[1641134032651,1.39842864,47130.0,47125.0,0.79851289]
[1641134033652,1.39842864,47130.0,47125.0,0.61251289]
[1641134034254,1.39842864,47130.0,47125.0,0.009794]
[1641134034453,1.58142864,47130.0,47125.0,0.188794]
[1641134035053,0.09045777,47129.0,47125.0,0.79151289]
[1641134035754,0.09045777,47129.0,47125.0,0.61251289]
[1641134035954,1.39842864,47129.0,47125.0,0.009794]
[1641134036155,1.39842864,47129.0,47124.0,0.60271889]
[1641134036355,1.57942864,47129.0,47125.0,0.181]
[1641134036756,1.48897087,47129.0,47125.0,0.181]
[1641134037356,0.09045777,47128.0,47125.0,0.181]
[1641134037556,0.09045777,47128.0,47124.0,0.60271889]
[1641134038159,0.09045777,47128.0,47123.0,0.60271889]
[1641134038359,0.27045777,47128.0,47124.0,0.181]
[1641134038968,0.18,47128.0,47124.0,0.78371889]
[1641134039968,0.09045777,47127.0,47125.0,0.60271889]
[1641134040169,0.09045777,47127.0,47125.0,0.66692889]
[1641134040672,0.09045777,47127.0,47125.0,0.06421]
[1641134040872,0.09045777,47127.0,47126.0,0.84382449]
[1641134042274,0.26945777,47127.0,47126.0,0.182]
[1641134042773,0.179,47127.0,47126.0,0.182]
[1641134043672,0.09045777,47127.0,47125.0,0.84382449]
[1641134044273,0.27145777,47127.0,47125.0,1.02582449]
[1641134044874,0.181,47127.0,47125.0,1.02582449]
[1641134045474,0.181,47127.0,47125.0,0.182]
[1641134045677,0.09045777,47126.0,47122.0,0.14033567]
[1641134046275,0.27045777,47126.0,47122.0,0.32433567]
[1641134046977,0.18,47126.0,47122.0,0.32433567]
[1641134047478,0.09045777,47125.0,47122.0,0.32433567]
[1641134047679,0.09045777,47125.0,47122.0,0.14033567]
[1641134048378,0.181,47125.0,47122.0,0.32433567]
[1641134048579,0.181,47125.0,47123.0,0.36137665]
[1641134049180,0.361,47125.0,47123.0,0.36137665]
[1641134049579,0.14033567,47124.0,47123.0,0.36137665]
[1641134049881,0.22406567,47124.0,47123.0,0.36137665]
[1641134050280,0.41006567,47124.0,47121.0,0.60229441]
[1641134050481,0.18,47122.0,47111.0,3.41968413]
[1641134050685,0.18,47119.0,47116.0,0.3614408]
[1641134051283,0.06,47122.0,47116.0,0.3614408]
[1641134051483,0.18,47119.0,47116.0,0.3614408]
[1641134051682,0.14033567,47118.0,47116.0,0.3614408]
[1641134051882,0.14033567,47118.0,47109.0,0.02122329]
[1641134052383,0.32833567,47118.0,47109.0,0.02122329]
[1641134052684,0.32833567,47118.0,47110.0,0.01206012]
[1641134052883,0.32833567,47118.0,47109.0,0.02122329]
[1641134053683,0.02122881,47114.0,47105.0,0.02122505]
[1641134053884,0.18,47110.0,47105.0,0.02122505]
[1641134054084,0.18,47110.0,47106.0,0.01206108]
[1641134054283,0.364,47110.0,47106.0,0.01206108]
[1641134054683,0.364,47110.0,47105.0,0.02122505]
[1641134055083,0.364,47110.0,47106.0,0.01206112]
[1641134055283,0.364,47110.0,47105.0,0.02122505]
[1641134055684,0.14033567,47106.0,47105.0,0.02122505]
[1641134056187,0.14033567,47106.0,47105.0,0.03328623]
[1641134056387,0.33033567,47106.0,47105.0,0.03328623]
[1641134057687,0.14033567,47106.0,47105.0,0.03328623]
[1641134058388,0.32333567,47106.0,47105.0,0.17428623]
[1641134059389,0.32333567,47106.0,47105.0,1.01776975]
[1641134059589,0.28067134,47118.0,47105.0,1.31688037]
[1641134059788,0.28067134,47118.0,47105.0,1.25025037]
[1641134059988,0.28067134,47118.0,47106.0,0.42204857]
[1641134060188,0.14033567,47118.0,47106.0,0.43410975]
[1641134060389,0.14033567,47118.0,47108.0,0.18]
[1641134060589,0.59286418,47115.0,47108.0,0.20122344]
[1641134060791,0.59286418,47115.0,47108.0,0.02122344]
[1641134060988,0.59286418,47115.0,47109.0,0.01206118]
[1641134061390,0.35604601,47117.0,47114.0,0.3614406]
[1641134062292,0.35604601,47118.0,47116.0,0.02121957]
[1641134062491,0.35604601,47118.0,47116.0,0.08529957]
[1641134062889,0.35604601,47118.0,47117.0,0.01205816]
[1641134063390,0.59286418,47120.0,47117.0,0.01205816]
[1641134063592,0.09045329,47124.0,47117.0,0.01205816]
[1641134063793,0.09045329,47124.0,47119.0,0.14033567]
[1641134064394,0.09045329,47124.0,47123.0,0.84422226]
[1641134065796,1.48797087,47125.0,47123.0,0.84422226]
[1641134065994,0.12,47126.0,47123.0,0.84422226]
[1641134066195,0.09045329,47124.0,47122.0,0.60303466]
[1641134066397,0.09045329,47124.0,47123.0,0.187]
[1641134067097,0.09045329,47125.0,47123.0,0.187]
[1641134067595,0.09045329,47125.0,47122.0,0.60303466]
[1641134068495,0.24145329,47125.0,47122.0,0.79103466]
[1641134068898,0.09045329,47124.0,47122.0,0.79103466]
[1641134069096,0.09045329,47124.0,47122.0,0.188]
[1641134069595,0.09045329,47124.0,47121.0,0.60303466]
[1641134069998,0.09045329,47124.0,47122.0,0.60303466]
[1641134070199,0.09045329,47124.0,47122.0,0.67466466]
[1641134070798,0.09045329,47125.0,47122.0,0.67466466]
[1641134071406,0.09045329,47125.0,47123.0,0.60303466]
[1641134072199,1.59759996,47128.0,47123.0,0.60303466]
[1641134072399,1.59759996,47128.0,47123.0,0.79603466]
[1641134072599,1.59759996,47128.0,47123.0,0.193]
[1641134072800,0.09045329,47124.0,47123.0,0.193]
[1641134073500,1.50805325,47127.0,47123.0,0.79605311]
[1641134073700,1.50805325,47127.0,47123.0,0.60305311]
[1641134074303,1.50805325,47127.0,47123.0,0.78905311]
[1641134075501,0.09045329,47127.0,47123.0,0.186]
[1641134075702,0.09045329,47127.0,47120.0,0.60305311]
[1641134076302,0.09045329,47127.0,47120.0,0.78905311]
[1641134077203,0.09045329,47127.0,47121.0,0.60305311]
[1641134078301,0.09045329,47127.0,47121.0,0.78905311]
[1641134078503,0.09045329,47127.0,47121.0,0.95780238]
[1641134078703,0.09045329,47127.0,47122.0,0.31621]
[1641134079102,0.09045329,47127.0,47121.0,0.95780238]
[1641134079303,0.09045329,47127.0,47122.0,0.60305311]
[1641134079905,0.5941912,47123.0,47122.0,0.60305311]
[1641134080302,0.5941912,47123.0,47122.0,0.78905311]
[1641134081804,0.18,47128.0,47122.0,0.60305311]
[1641134082007,0.18,47124.0,47122.0,0.36157874]
[1641134082406,0.18,47124.0,47122.0,0.54657874]
[1641134082608,0.09045329,47123.0,47122.0,0.54657874]
[1641134083508,0.27045329,47123.0,47122.0,0.54657874]
[1641134083713,0.09045329,47123.0,47122.0,0.54657874]
[1641134084312,0.27045329,47123.0,47122.0,0.55057874]
[1641134084617,0.18,47123.0,47122.0,0.189]
[1641134085115,0.27045329,47123.0,47122.0,0.189]
[1641134085714,0.27045329,47123.0,47121.0,0.36157874]
[1641134085915,0.14033567,47122.0,47121.0,0.36157874]
[1641134086116,0.14033567,47122.0,47120.0,0.60305311]
[1641134086316,0.14033567,47122.0,47121.0,0.165]
[1641134086516,0.32033567,47122.0,47121.0,0.165]
[1641134087119,0.41078896,47122.0,47121.0,0.165]
[1641134087725,0.41078896,47122.0,47116.0,0.36157874]
[1641134087924,0.18,47118.0,47116.0,0.36157874]
[1641134088125,0.2525,47118.0,47117.0,0.36157874]
[1641134088925,0.34295329,47118.0,47116.0,0.54757874]
[1641134089324,0.16295329,47118.0,47116.0,0.54757874]
[1641134089525,0.34295329,47118.0,47116.0,0.54757874]
[1641134089731,0.09045329,47117.0,47116.0,0.36157874]
[1641134090325,0.24845329,47117.0,47116.0,0.55057874]
[1641134091725,0.09045329,47117.0,47115.0,0.36157874]
[1641134092427,0.09045329,47117.0,47115.0,0.55257874]
[1641134092626,0.09045329,47117.0,47115.0,0.191]
[1641134093027,0.09045329,47121.0,47115.0,0.191]
[1641134093226,0.59297419,47116.0,47115.0,0.79405311]
[1641134093927,1.30661885,47120.0,47115.0,0.191]
[1641134094427,1.30661885,47120.0,47115.0,0.192]
[1641134094627,0.18,47118.0,47117.0,0.84436882]
[1641134094827,0.26102,47118.0,47117.0,0.84436882]
[1641134095735,0.35147329,47118.0,47116.0,0.84436882]
[1641134096136,0.18,47117.0,47116.0,0.84436882]
[1641134096337,0.18,47117.0,47116.0,1.03636882]
[1641134096840,0.27045329,47117.0,47116.0,1.03636882]
[1641134097038,0.2916815,47117.0,47116.0,1.03636882]
[1641134097437,1.59830035,47117.0,47116.0,0.192]
[1641134097639,1.59830035,47117.0,47114.0,0.84436882]
[1641134098037,1.41830035,47117.0,47114.0,0.84436882]
[1641134098438,1.58030035,47117.0,47114.0,1.03036882]
[1641134099039,1.48984706,47117.0,47114.0,1.03036882]
[1641134099240,0.59226518,47116.0,47114.0,0.186]
[1641134099940,0.59226518,47116.0,47111.0,0.36147704]
[1641134100340,0.59226518,47116.0,47114.0,0.194]
[1641134100740,0.65226518,47116.0,47114.0,0.194]
[1641134100941,0.35543754,47115.0,47114.0,0.194]
[1641134101742,0.35543754,47115.0,47112.0,0.36147704]
[1641134102341,0.35543754,47115.0,47112.0,0.55647704]
[1641134103044,0.35543754,47117.0,47113.0,0.36147704]
[1641134103645,0.35543754,47117.0,47114.0,0.36147704]
[1641134104345,0.35543754,47117.0,47114.0,0.55047704]
[1641134105752,0.35543754,47117.0,47114.0,0.36147704]
[1641134105949,0.35543754,47116.0,47113.0,0.36147704]
[1641134106350,0.35543754,47116.0,47114.0,0.189]
[1641134107251,0.35543754,47115.0,47114.0,0.189]
[1641134107651,0.35543754,47115.0,47112.0,0.36147704]
[1641134108351,0.35543754,47115.0,47112.0,0.55347704]
[1641134109552,0.53543754,47115.0,47112.0,0.192]
[1641134109752,0.53543754,47115.0,47111.0,0.36147704]
[1641134110053,0.35543754,47115.0,47111.0,0.36147704]
[1641134110252,0.32033567,47114.0,47111.0,0.36147704]
[1641134110453,0.32033567,47114.0,47097.0,0.26409294]
[1641134110655,0.18,47101.0,47094.0,1.8034]
[1641134110855,0.2414,47101.0,47092.0,1.56882028]
[1641134111253,0.08146374,47100.0,47098.0,0.01206266]
[1641134111454,0.08146374,47100.0,47093.0,0.01206266]
[1641134111653,0.08146374,47100.0,47092.0,1.56882028]
[1641134112055,0.02123597,47099.0,47093.0,0.01206348]
[1641134112256,0.32033567,47094.0,47092.0,1.56882028]
[1641134112455,0.32033567,47094.0,47081.0,1.68564773]
[1641134112656,0.32033567,47094.0,47079.0,0.14033567]
[1641134112657,1.13523924,47093.0,47079.0,0.14033567]
[1641134112958,0.18,47080.0,47079.0,1.56679]
[1641134113159,0.29393509,47080.0,47079.0,1.56679]
[1641134113355,0.27269,47080.0,47079.0,0.01206732]
[1641134113555,0.27269,47080.0,47073.0,0.49060456]
[1641134113755,0.27269,47080.0,47071.0,0.02]
[1641134113957,0.27269,47080.0,47075.0,0.0120678]
[1641134114356,0.59902567,47080.0,47075.0,0.0120678]
[1641134114756,0.59902567,47080.0,47072.0,0.0120678]
[1641134115055,0.59902567,47080.0,47076.0,0.0120678]
[1641134115256,0.59902567,47080.0,47073.0,0.0120678]
[1641134115456,0.59902567,47080.0,47071.0,0.02]
[1641134115657,0.41302567,47080.0,47074.0,0.01206806]
[1641134115861,0.41302567,47080.0,47072.0,0.01206806]
[1641134116055,0.41302567,47080.0,47075.0,0.01206806]
[1641134116256,0.41302567,47080.0,47073.0,0.01206806]
[1641134116558,0.60002567,47080.0,47071.0,0.02]
[1641134116756,0.60002567,47080.0,47074.0,0.01206802]
[1641134117054,0.60002567,47080.0,47072.0,0.01206802]
[1641134117255,0.60002567,47080.0,47071.0,0.02]
[1641134117455,0.60002567,47080.0,47073.0,0.012068]
[1641134117659,0.41302567,47080.0,47072.0,0.012068]
[1641134117855,0.23302567,47080.0,47072.0,0.012068]
[1641134118056,0.25427007,47080.0,47072.0,0.012068]
[1641134118559,0.44327007,47080.0,47072.0,0.012068]
[1641134118761,0.35058007,47080.0,47072.0,0.012068]
[1641134118960,0.94284525,47080.0,47072.0,0.85609052]
[1641134119460,0.94284525,47080.0,47073.0,0.012068]
[1641134119661,1.12284525,47080.0,47073.0,0.012068]
[1641134120361,1.12084525,47080.0,47073.0,0.012068]
[1641134120765,1.09960085,47080.0,47072.0,0.84402252]
[1641134120964,0.50733567,47080.0,47079.0,0.84402252]
[1641134121381,0.32733567,47080.0,47079.0,0.84402252]
[1641134121779,0.14033567,47080.0,47079.0,0.84402252]
[1641134122382,0.34858007,47080.0,47079.0,0.84402252]
[1641134122982,0.32733567,47080.0,47079.0,0.84402252]
[1641134123485,0.34858007,47080.0,47078.0,0.84402252]
[1641134123885,0.16158007,47080.0,47078.0,0.84402252]
[1641134124287,0.14033567,47080.0,47078.0,0.84402252]
[1641134124488,0.32633567,47080.0,47079.0,0.84402252]
[1641134124886,0.186,47080.0,47079.0,0.84402252]
[1641134125287,0.186,47080.0,47077.0,0.18]
[1641134125487,1.30661885,47082.0,47078.0,0.02123721]
[1641134125687,1.30661885,47085.0,47079.0,0.08849367]
[1641134126189,0.35482738,47080.0,47079.0,0.40870967]
[1641134126388,0.35482738,47080.0,47079.0,0.60370967]
[1641134126587,1.44695452,47089.0,47080.0,0.23693732]
[1641134126786,1.44695452,47089.0,47083.0,0.18]
[1641134127487,0.14033567,47089.0,47083.0,0.18]
[1641134127888,0.14033567,47089.0,47088.0,0.844768]
[1641134128388,0.14033567,47089.0,47088.0,1.037768]
[1641134129388,1.30661885,47091.0,47088.0,1.217768]
[1641134129789,0.02123498,47101.0,47088.0,1.217768]
[1641134129790,1.30661885,47093.0,47088.0,0.18]
[1641134129992,1.30661885,47093.0,47091.0,0.18]
[1641134130190,1.30661885,47093.0,47091.0,0.26804]
[1641134131191,1.41559001,47098.0,47092.0,0.84470855]
[1641134131192,1.30661885,47094.0,47092.0,0.84470855]
[1641134132093,1.30661885,47095.0,47092.0,0.84470855]
[1641134132493,1.30661885,47095.0,47092.0,1.03670855]
[1641134132694,1.30661885,47095.0,47093.0,0.60336036]
[1641134133296,0.02123844,47094.0,47093.0,0.60336036]
[1641134133594,0.02123844,47094.0,47092.0,0.79536036]
[1641134133895,0.02123844,47094.0,47092.0,0.60336036]
[1641134134492,0.02123844,47094.0,47092.0,0.79236036]
[1641134134694,0.02123844,47094.0,47092.0,0.189]
[1641134135800,1.41559001,47093.0,47088.0,0.74369603]
[1641134136400,1.41559001,47093.0,47088.0,0.93369603]
[1641134136796,0.09603849,47093.0,47088.0,0.93369603]
[1641134136997,1.30070551,47090.0,47089.0,0.60336036]
[1641134137597,0.09603849,47093.0,47089.0,0.60336036]
[1641134137799,1.41559001,47092.0,47088.0,0.14033567]
[1641134138499,1.41559001,47092.0,47088.0,0.32533567]
[1641134138903,1.30029951,47089.0,47088.0,0.92869603]
[1641134139399,1.30029951,47089.0,47088.0,0.32533567]
[1641134139603,1.30029951,47091.0,47088.0,1.17004422]
[1641134139902,1.30029951,47091.0,47088.0,0.98504422]
[1641134140399,1.30029951,47091.0,47088.0,1.17004422]
[1641134141508,1.32153871,47091.0,47089.0,0.60343105]
[1641134141803,1.43682921,47091.0,47088.0,0.14033567]
[1641134142405,1.43682921,47091.0,47088.0,0.32633567]
[1641134142804,0.09603849,47090.0,47088.0,0.32633567]
[1641134143805,0.09603849,47090.0,47088.0,0.14033567]
[1641134144206,1.5116285,47090.0,47088.0,0.14033567]
[1641134144509,1.5116285,47090.0,47088.0,0.32733567]
[1641134145106,0.09603849,47090.0,47088.0,0.32733567]
[1641134145807,0.09603849,47090.0,47088.0,0.14033567]
[1641134146512,0.09603849,47090.0,47088.0,0.33033567]
[1641134148409,0.09603849,47090.0,47088.0,0.14033567]
[1641134148609,0.09603849,47090.0,47088.0,0.33033567]
[1641134149711,0.09603849,47090.0,47088.0,0.14033567]
[1641134150612,0.09603849,47090.0,47088.0,0.32933567]
[1641134151814,1.5116285,47090.0,47088.0,0.14033567]
[1641134152513,1.41559001,47089.0,47088.0,0.32733567]
[1641134153315,1.5116285,47090.0,47088.0,0.32733567]
[1641134153915,1.5116285,47090.0,47088.0,0.14033567]
[1641134154318,0.09603849,47090.0,47088.0,0.14033567]
[1641134154516,0.09603849,47090.0,47088.0,0.32733567]
[1641134154918,1.5116285,47090.0,47088.0,0.32733567]
[1641134155817,1.41559001,47089.0,47084.0,0.60343105]
[1641134156621,1.41559001,47087.0,47084.0,0.18]
[1641134156819,0.14033567,47086.0,47084.0,0.18]
[1641134157822,0.14033567,47086.0,47079.0,0.74376672]
[1641134158523,0.09603849,47085.0,47081.0,0.60343105]
[1641134159225,0.27603849,47085.0,47081.0,0.60343105]
[1641134159423,0.09603849,47085.0,47081.0,0.60343105]
[1641134159622,0.27603849,47085.0,47081.0,0.60343105]
[1641134159824,1.29922233,47082.0,47080.0,0.60343105]
[1641134160623,1.29922233,47081.0,47080.0,0.79043105]
[1641134161829,1.29922233,47081.0,47080.0,0.60343105]
[1641134162436,0.09603849,47082.0,47079.0,0.14033567]
[1641134162636,0.09603849,47082.0,47080.0,0.175]
[1641134164537,0.09603849,47082.0,47080.0,0.167]
[1641134165938,0.09603849,47082.0,47079.0,0.14033567]
[1641134166539,0.09603849,47082.0,47079.0,0.31533567]
[1641134167840,0.09603849,47082.0,47079.0,0.14033567]
[1641134168641,0.09603849,47082.0,47079.0,0.32533567]
[1641134169846,0.09603849,47082.0,47079.0,0.14033567]
[1641134170644,0.09603849,47082.0,47079.0,0.32533567]
[1641134171846,0.09603849,47082.0,47079.0,0.14033567]
[1641134172548,0.09603849,47082.0,47079.0,0.32533567]
[1641134173849,0.09603849,47082.0,47079.0,0.14033567]
[1641134174548,0.09603849,47082.0,47079.0,0.32533567]
[1641134174749,0.09603849,47082.0,47079.0,0.40280567]
[1641134175849,0.09603849,47082.0,47081.0,0.18]
[1641134176249,0.09603849,47082.0,47079.0,0.21780567]
[1641134176649,0.09603849,47082.0,47081.0,0.197]
[1641134177057,0.35587736,47083.0,47081.0,0.197]
[1641134177958,0.35587736,47084.0,47080.0,0.60343105]
[1641134178657,0.35587736,47084.0,47081.0,0.18]
[1641134179058,0.35587736,47084.0,47080.0,0.79943105]
[1641134179661,0.35587736,47083.0,47080.0,0.196]
[1641134179859,0.35587736,47083.0,47079.0,0.74376672]
[1641134180660,0.35587736,47083.0,47079.0,0.93876672]
[1641134181262,0.35587736,47081.0,47079.0,0.33533567]
[1641134181961,0.35587736,47081.0,47079.0,0.14033567]
[1641134182563,0.35587736,47081.0,47079.0,0.33733567]
[1641134182762,0.35587736,47083.0,47079.0,0.33733567]
[1641134183862,0.35587736,47083.0,47079.0,0.14033567]
[1641134184263,0.35587736,47083.0,47080.0,0.18]
[1641134184463,0.35587736,47083.0,47080.0,0.19206693]
[1641134184665,0.35587736,47083.0,47080.0,0.18]
[1641134185168,0.35587736,47084.0,47080.0,0.92376672]
[1641134185765,0.35587736,47084.0,47081.0,0.01206662]
[1641134186071,0.35587736,47085.0,47081.0,0.61549767]
[1641134186471,0.35587736,47085.0,47081.0,0.60343105]
[1641134186772,0.35587736,47085.0,47081.0,0.79743105]
[1641134187777,0.35587736,47085.0,47081.0,0.97743105]
[1641134187971,0.35587736,47085.0,47081.0,0.78343105]
[1641134188587,0.35587736,47085.0,47082.0,0.01206645]
[1641134189374,0.35587736,47086.0,47082.0,0.6154975]
[1641134189776,0.35587736,47086.0,47082.0,0.60343105]
[1641134190583,0.35587736,47086.0,47082.0,0.79543105]
[1641134191284,0.35587736,47086.0,47085.0,0.14033567]
[1641134191484,1.39869181,47094.0,47085.0,0.14033567]
[1641134191684,0.59342917,47087.0,47085.0,0.14033567]
[1641134192283,0.59342917,47086.0,47085.0,0.14033567]
[1641134192684,0.59342917,47086.0,47085.0,0.33133567]
[1641134193586,0.59342917,47086.0,47085.0,0.51133567]
[1641134194084,0.59342917,47086.0,47085.0,0.32033567]
[1641134194486,0.59342917,47087.0,47085.0,0.14033567]
[1641134194685,0.59342917,47087.0,47085.0,0.33333567]
[1641134195784,1.39869181,47094.0,47085.0,0.33333567]
[1641134195785,0.59342917,47088.0,47085.0,0.33333567]
[1641134196193,0.59342917,47088.0,47086.0,0.18]
[1641134196392,0.59342917,47088.0,47086.0,0.26307]
[1641134196795,0.59342917,47087.0,47086.0,0.26307]
[1641134196995,1.39869181,47094.0,47087.0,0.41401794]
[1641134197194,1.39869181,47094.0,47092.0,0.14033567]
[1641134197595,1.29922233,47094.0,47092.0,0.14033567]
[1641134197795,1.29922233,47098.0,47092.0,0.14033567]
[1641134198695,1.29922233,47098.0,47092.0,0.32833567]
[1641134199095,0.09720328,47098.0,47092.0,0.32833567]
[1641134200098,0.09720328,47098.0,47092.0,0.14033567]
[1641134200703,0.09720328,47098.0,47092.0,0.32833567]
[1641134201902,0.09720328,47098.0,47092.0,0.14033567]
[1641134202605,0.09720328,47098.0,47092.0,0.32833567]
[1641134203606,0.09720328,47098.0,47093.0,0.18]
[1641134203805,0.09720328,47098.0,47092.0,0.32833567]
[1641134204006,0.09720328,47098.0,47092.0,0.14033567]
[1641134204306,1.29922233,47101.0,47092.0,0.14033567]
[1641134204708,1.29922233,47101.0,47092.0,0.32933567]
[1641134205209,0.14033567,47103.0,47092.0,0.32933567]
[1641134206009,0.14033567,47103.0,47092.0,0.14033567]
[1641134206211,1.40651811,47102.0,47092.0,0.14033567]
[1641134206712,1.40651811,47102.0,47092.0,0.32233567]
[1641134207112,0.35688846,47095.0,47092.0,0.32233567]
[1641134208113,0.35688846,47095.0,47092.0,0.14033567]
[1641134208713,0.35688846,47095.0,47092.0,0.33333567]
[1641134208915,0.09737696,47102.0,47092.0,0.33333567]
[1641134209116,1.30914115,47096.0,47093.0,0.84380747]
[1641134210514,1.30914115,47096.0,47095.0,0.60335976]
[1641134211616,1.42815398,47099.0,47095.0,0.62458858]
[1641134211919,1.42815398,47099.0,47098.0,0.18]
[1641134212420,1.8401,47108.0,47098.0,0.18]
[1641134212620,1.22770136,47112.0,47098.0,0.18]
[1641134212819,1.22770136,47112.0,47098.0,0.69335]
[1641134213019,2.76116191,47112.0,47104.0,0.18]
[1641134213218,2.76116191,47112.0,47104.0,0.24185]
[1641134214019,1.67379622,47112.0,47104.0,0.24185]
[1641134214220,1.67379622,47112.0,47104.0,0.06185]
[1641134214520,0.35787872,47107.0,47103.0,0.14033567]
[1641134214720,0.35787872,47107.0,47104.0,0.19]
[1641134215322,0.35787872,47108.0,47104.0,0.19]
[1641134215924,0.35787872,47108.0,47103.0,0.14033567]
[1641134216128,0.32033567,47112.0,47103.0,0.14033567]
[1641134216129,0.35787872,47106.0,47103.0,0.14033567]
[1641134216722,0.35787872,47106.0,47103.0,0.33333567]
[1641134217123,0.35787872,47105.0,47103.0,0.33333567]
[1641134218222,0.35787872,47105.0,47103.0,0.14033567]
[1641134218623,0.35787872,47106.0,47103.0,0.14033567]
[1641134218826,0.35787872,47106.0,47104.0,0.18]
[1641134219224,0.35787872,47106.0,47103.0,0.33433567]
[1641134220025,0.35787872,47106.0,47103.0,0.14033567]
[1641134220627,0.35787872,47107.0,47103.0,0.14033567]
[1641134220826,0.35787872,47107.0,47103.0,0.33433567]
[1641134221926,0.35787872,47108.0,47103.0,0.33433567]
[1641134222125,0.35787872,47108.0,47103.0,0.14033567]
[1641134222725,0.35787872,47108.0,47103.0,0.32733567]
[1641134222726,0.18,47106.0,47103.0,0.32733567]
[1641134222927,0.27083,47106.0,47103.0,0.32733567]
[1641134223638,0.59646454,47105.0,47103.0,0.32733567]
[1641134223928,0.59646454,47105.0,47103.0,0.14033567]
[1641134224829,0.59646454,47105.0,47103.0,0.31833567]
[1641134225632,0.27083,47106.0,47103.0,0.31833567]
[1641134225633,0.59646454,47104.0,47103.0,0.31833567]
[1641134225932,0.59646454,47104.0,47103.0,0.14033567]